[Event "Live Chess"]
[Site "Chess.com"]
[Date "2023.05.20"]
[Round "-"]
[White "LL220284LL"]
[Black "Biranidun"]
[Result "1-0"]
[WhiteElo "2399"]
[BlackElo "2726"]
[TimeControl "300"]
[EndTime "15:29:24 PDT"]
[Termination "LL220284LL won on time"]

1. e3 {[%clk 0:04:59]} 1... Nf6 {[%clk 0:04:58.2]} 2. b3 {[%clk 0:04:57.8]} 2...
g6 {[%clk 0:04:58.1]} 3. Bb2 {[%clk 0:04:56.7]} 3... Bg7 {[%clk 0:04:58]} 4. Nf3
{[%clk 0:04:56]} 4... d6 {[%clk 0:04:57.7]} 5. Be2 {[%clk 0:04:55.2]} 5... e5
{[%clk 0:04:57.1]} 6. d3 {[%clk 0:04:53.6]} 6... O-O {[%clk 0:04:56.4]} 7. Nbd2
{[%clk 0:04:53]} 7... Re8 {[%clk 0:04:55.2]} 8. O-O {[%clk 0:04:51.7]} 8... Nbd7
{[%clk 0:04:54.4]} 9. c4 {[%clk 0:04:49.8]} 9... Nf8 {[%clk 0:04:45]} 10. Re1
{[%clk 0:04:47.3]} 10... h6 {[%clk 0:04:34.8]} 11. Rc1 {[%clk 0:04:45]} 11... g5
{[%clk 0:04:33.6]} 12. Nf1 {[%clk 0:04:42.8]} 12... Ng6 {[%clk 0:04:31.8]} 13.
N3d2 {[%clk 0:04:40.7]} 13... c6 {[%clk 0:04:29.3]} 14. Ng3 {[%clk 0:04:36.7]}
14... Be6 {[%clk 0:04:19.3]} 15. d4 {[%clk 0:04:27.8]} 15... exd4 {[%clk
0:04:16.4]} 16. Bxd4 {[%clk 0:04:25.9]} 16... d5 {[%clk 0:04:01.2]} 17. Qc2
{[%clk 0:04:15.6]} 17... Qd7 {[%clk 0:03:32.2]} 18. Qb2 {[%clk 0:04:06.6]} 18...
Qe7 {[%clk 0:03:31]} 19. cxd5 {[%clk 0:04:00.7]} 19... cxd5 {[%clk 0:03:26.6]}
20. Rc2 {[%clk 0:03:51.9]} 20... Rec8 {[%clk 0:03:25.1]} 21. Rec1 {[%clk
0:03:50.4]} 21... Rxc2 {[%clk 0:03:24.3]} 22. Rxc2 {[%clk 0:03:50.3]} 22... Ne8
{[%clk 0:03:22.7]} 23. Nh5 {[%clk 0:03:40.1]} 23... Bxd4 {[%clk 0:03:21.1]} 24.
Qxd4 {[%clk 0:03:40]} 24... f6 {[%clk 0:03:08.1]} 25. Bd3 {[%clk 0:03:28.1]}
25... Ne5 {[%clk 0:03:05.8]} 26. Ng3 {[%clk 0:03:23.8]} 26... Ng7 {[%clk
0:02:59.3]} 27. Be2 {[%clk 0:03:17.8]} 27... Nc6 {[%clk 0:02:57.7]} 28. Qb2
{[%clk 0:03:14.4]} 28... Rd8 {[%clk 0:02:54.3]} 29. Nf3 {[%clk 0:03:12.2]} 29...
h5 {[%clk 0:02:50.5]} 30. Nd4 {[%clk 0:03:09.5]} 30... h4 {[%clk 0:02:48.2]} 31.
Nf1 {[%clk 0:03:07.3]} 31... Bd7 {[%clk 0:02:38]} 32. Nxc6 {[%clk 0:02:59.6]}
32... bxc6 {[%clk 0:02:37.3]} 33. Nd2 {[%clk 0:02:52]} 33... h3 {[%clk
0:02:35.6]} 34. g3 {[%clk 0:02:50.3]} 34... Nf5 {[%clk 0:02:27.4]} 35. Nf1
{[%clk 0:02:41.5]} 35... Qe4 {[%clk 0:02:12.6]} 36. f3 {[%clk 0:02:36.4]} 36...
Qe7 {[%clk 0:02:11.6]} 37. Qc1 {[%clk 0:02:33.1]} 37... Re8 {[%clk 0:02:10]} 38.
Bd3 {[%clk 0:02:20]} 38... Nd6 {[%clk 0:01:40.7]} 39. Kf2 {[%clk 0:02:13.1]}
39... Kg7 {[%clk 0:01:39.5]} 40. Qb2 {[%clk 0:02:02.2]} 40... g4 {[%clk
0:01:37.4]} 41. Qd4 {[%clk 0:01:34.7]} 41... gxf3 {[%clk 0:01:33.6]} 42. Qxa7
{[%clk 0:01:31.3]} 42... Ne4+ {[%clk 0:00:35.9]} 43. Bxe4 {[%clk 0:01:28.7]}
43... dxe4 {[%clk 0:00:35.8]} 44. Nd2 {[%clk 0:01:19.4]} 44... f5 {[%clk
0:00:31]} 45. Nc4 {[%clk 0:01:11.8]} 45... Be6 {[%clk 0:00:29.8]} 46. Qxe7+
{[%clk 0:01:10]} 46... Rxe7 {[%clk 0:00:29.7]} 47. Ne5 {[%clk 0:01:08.1]} 47...
Bd5 {[%clk 0:00:28]} 48. Nxc6 {[%clk 0:01:06.4]} 48... Bxc6 {[%clk 0:00:26.8]}
49. Rxc6 {[%clk 0:01:05.1]} 49... Rd7 {[%clk 0:00:26.7]} 50. Rc2 {[%clk
0:01:04]} 50... Rd3 {[%clk 0:00:25.8]} 51. Rb2 {[%clk 0:01:02.9]} 51... Kf6
{[%clk 0:00:21.2]} 52. b4 {[%clk 0:01:02.2]} 52... Ke7 {[%clk 0:00:17.5]} 53. b5
{[%clk 0:01:01.6]} 53... Kd7 {[%clk 0:00:17]} 54. b6 {[%clk 0:01:00.8]} 54...
Kc8 {[%clk 0:00:16.6]} 55. b7+ {[%clk 0:00:51]} 55... Kb8 {[%clk 0:00:15.9]} 56.
a4 {[%clk 0:00:37.5]} 56... Ra3 {[%clk 0:00:15.1]} 57. g4 {[%clk 0:00:31.8]}
57... fxg4 {[%clk 0:00:14.2]} 58. Kg3 {[%clk 0:00:31.1]} 58... Rxa4 {[%clk
0:00:13.6]} 59. Kxg4 {[%clk 0:00:30]} 59... Ra1 {[%clk 0:00:12.5]} 60. Kf4
{[%clk 0:00:27.9]} 60... Rf1 {[%clk 0:00:09.8]} 61. Kxe4 {[%clk 0:00:26.4]}
61... f2 {[%clk 0:00:09.5]} 62. Kf3 {[%clk 0:00:24.6]} 62... Rh1 {[%clk
0:00:09.3]} 63. Rxf2 {[%clk 0:00:23.3]} 63... Kxb7 {[%clk 0:00:09]} 64. Kg3
{[%clk 0:00:22.4]} 64... Re1 {[%clk 0:00:07.5]} 65. Rf3 {[%clk 0:00:21.6]} 65...
Kc6 {[%clk 0:00:07.4]} 66. Kxh3 {[%clk 0:00:20.8]} 66... Kd5 {[%clk 0:00:07.3]}
67. Kg4 {[%clk 0:00:20.1]} 67... Ke4 {[%clk 0:00:07.2]} 68. Rg3 {[%clk
0:00:18.8]} 68... Rf1 {[%clk 0:00:05.6]} 69. h4 {[%clk 0:00:17.1]} 69... Ke5
{[%clk 0:00:05.1]} 70. h5 {[%clk 0:00:15.8]} 70... Rh1 {[%clk 0:00:04.6]} 71.
Kg5 {[%clk 0:00:14.9]} 71... Ke6 {[%clk 0:00:03.9]} 72. Kg6 {[%clk 0:00:14]}
72... Ke7 {[%clk 0:00:01.8]} 73. h6 {[%clk 0:00:13.1]} 73... Kf8 {[%clk
0:00:01.7]} 74. e4 {[%clk 0:00:06.1]} 74... Ke7 {[%clk 0:00:01.6]} 75. Kg7
{[%clk 0:00:05.2]} 75... Rf1 {[%clk 0:00:01.5]} 76. h7 {[%clk 0:00:04.1]} 76...
Re1 {[%clk 0:00:01.4]} 77. h8=Q {[%clk 0:00:03.2]} 77... Rh1 {[%clk 0:00:01.3]}
78. Qxh1 {[%clk 0:00:02.2]} 78... Ke6 {[%clk 0:00:01.2]} 79. Rf3 {[%clk
0:00:02]} 79... Kd6 {[%clk 0:00:01.1]} 80. Qh4 {[%clk 0:00:01.6]} 80... Kc5
{[%clk 0:00:01]} 81. Qg5+ {[%clk 0:00:01.4]} 81... Kc6 {[%clk 0:00:00.4]} 82.
Qf5 {[%clk 0:00:01.3]} 1-0

[Event "Live Chess"]
[Site "Chess.com"]
[Date "2023.05.20"]
[Round "-"]
[White "AlanPaling"]
[Black "Conradical12"]
[Result "0-1"]
[WhiteElo "1221"]
[BlackElo "1607"]
[TimeControl "300"]
[EndTime "15:29:44 PDT"]
[Termination "Conradical12 won on time"]

1. c4 {[%clk 0:04:58.3]} 1... e5 {[%clk 0:04:58.5]} 2. Nc3 {[%clk 0:04:56.1]}
2... Nc6 {[%clk 0:04:57.9]} 3. g3 {[%clk 0:04:54.1]} 3... f5 {[%clk 0:04:57.2]}
4. Bg2 {[%clk 0:04:52.6]} 4... Bc5 {[%clk 0:04:56.7]} 5. e3 {[%clk 0:04:51.2]}
5... Nf6 {[%clk 0:04:55.6]} 6. Nge2 {[%clk 0:04:50.2]} 6... O-O {[%clk
0:04:54.4]} 7. b3 {[%clk 0:04:44.3]} 7... d6 {[%clk 0:04:50.9]} 8. Bb2 {[%clk
0:04:43]} 8... Be6 {[%clk 0:04:47.7]} 9. d4 {[%clk 0:04:41.2]} 9... exd4 {[%clk
0:04:46.1]} 10. exd4 {[%clk 0:04:40.3]} 10... Bb4 {[%clk 0:04:36.2]} 11. d5
{[%clk 0:04:38.3]} 11... Bxc3+ {[%clk 0:04:34.2]} 12. Nxc3 {[%clk 0:04:31.4]}
12... Bd7 {[%clk 0:04:34.1]} 13. dxc6 {[%clk 0:04:29]} 13... Bxc6 {[%clk
0:04:34]} 14. Bxc6 {[%clk 0:04:27.2]} 14... bxc6 {[%clk 0:04:33.9]} 15. O-O
{[%clk 0:04:25.3]} 15... f4 {[%clk 0:04:30.8]} 16. Qf3 {[%clk 0:04:15.8]} 16...
fxg3 {[%clk 0:04:28.3]} 17. hxg3 {[%clk 0:04:14.7]} 17... Qd7 {[%clk 0:04:22]}
18. Rae1 {[%clk 0:04:06.8]} 18... Ng4 {[%clk 0:03:57.8]} 19. Qg2 {[%clk
0:03:59.9]} 19... Rf5 {[%clk 0:03:51.4]} 20. f3 {[%clk 0:03:41.1]} 20... Ne5
{[%clk 0:03:49.4]} 21. Re3 {[%clk 0:03:24.7]} 21... Raf8 {[%clk 0:03:44.3]} 22.
Ne2 {[%clk 0:03:10.7]} 22... Qf7 {[%clk 0:03:32.8]} 23. f4 {[%clk 0:03:04.9]}
23... Ng4 {[%clk 0:03:30.5]} 24. Ref3 {[%clk 0:02:58.1]} 24... Re8 {[%clk
0:03:24.1]} 25. Bc1 {[%clk 0:02:39]} 25... Qe7 {[%clk 0:03:19.9]} 26. Nd4 {[%clk
0:02:35.7]} 26... Rh5 {[%clk 0:03:11.5]} 27. Qc2 {[%clk 0:02:10.7]} 27... Rh2
{[%clk 0:03:04.4]} 28. Qc3 {[%clk 0:02:00.2]} 28... c5 {[%clk 0:03:02.1]} 29.
Nf5 {[%clk 0:01:57.6]} 29... Qf7 {[%clk 0:02:48.2]} 30. Ne3 {[%clk 0:01:52.6]}
30... Nxe3 {[%clk 0:02:43.1]} 31. Rxe3 {[%clk 0:01:49]} 31... Rxe3 {[%clk
0:02:39.5]} 32. Qxe3 {[%clk 0:01:46.3]} 32... Rxa2 {[%clk 0:02:38.8]} 33. Re1
{[%clk 0:01:38.1]} 33... Kf8 {[%clk 0:02:35.8]} 34. Qe6 {[%clk 0:01:32.3]} 34...
Rc2 {[%clk 0:02:29.7]} 35. Qxf7+ {[%clk 0:01:27.4]} 35... Kxf7 {[%clk
0:02:27.8]} 36. Kf1 {[%clk 0:01:14]} 36... Rc3 {[%clk 0:02:25.4]} 37. Be3 {[%clk
0:01:06.3]} 37... Rxb3 {[%clk 0:02:23.5]} 38. Kf2 {[%clk 0:01:05.6]} 38... a5
{[%clk 0:02:20.9]} 39. Ra1 {[%clk 0:01:04.1]} 39... Rb2+ {[%clk 0:02:18.6]} 40.
Kf3 {[%clk 0:01:01.7]} 40... Kf6 {[%clk 0:01:50.1]} 41. Rxa5 {[%clk 0:00:59.8]}
41... Kf5 {[%clk 0:01:48.8]} 42. g4+ {[%clk 0:00:58.4]} 42... Ke6 {[%clk
0:01:45.5]} 43. Ra7 {[%clk 0:00:53.5]} 43... Kd7 {[%clk 0:01:43.9]} 44. f5
{[%clk 0:00:45.5]} 44... Rb4 {[%clk 0:01:40]} 45. g5 {[%clk 0:00:44]} 45... Rxc4
{[%clk 0:01:38.3]} 46. f6 {[%clk 0:00:42]} 46... gxf6 {[%clk 0:01:29.8]} 47.
gxf6 {[%clk 0:00:40.6]} 47... Rb4 {[%clk 0:01:09.9]} 48. Bh6 {[%clk 0:00:31.1]}
48... Rb1 {[%clk 0:01:04.3]} 49. Ke2 {[%clk 0:00:27.2]} 49... Rb2+ {[%clk
0:00:59.6]} 50. Kd3 {[%clk 0:00:23.9]} 50... Rf2 {[%clk 0:00:53.7]} 51. Bg7
{[%clk 0:00:21.2]} 51... h5 {[%clk 0:00:51.4]} 52. Ra1 {[%clk 0:00:03.9]} 52...
Rf5 {[%clk 0:00:26.5]} 53. Rh1 {[%clk 0:00:01.8]} 53... Ke6 {[%clk 0:00:23.7]}
0-1

[Event "Live Chess"]
[Site "Chess.com"]
[Date "2023.05.20"]
[Round "-"]
[White "stevochess11"]
[Black "smoggyrabbit"]
[Result "1-0"]
[WhiteElo "1763"]
[BlackElo "1693"]
[TimeControl "300"]
[EndTime "15:29:51 PDT"]
[Termination "stevochess11 won on time"]

1. d4 {[%clk 0:04:57.3]} 1... e6 {[%clk 0:04:58.7]} 2. Nf3 {[%clk 0:04:56.1]}
2... f5 {[%clk 0:04:53.4]} 3. Bg5 {[%clk 0:04:53.4]} 3... Nf6 {[%clk 0:04:48.9]}
4. Nbd2 {[%clk 0:04:46.8]} 4... d6 {[%clk 0:04:32]} 5. e4 {[%clk 0:04:44.4]}
5... Be7 {[%clk 0:04:20.3]} 6. e5 {[%clk 0:04:37.7]} 6... dxe5 {[%clk
0:04:16.9]} 7. dxe5 {[%clk 0:04:36.8]} 7... Nd5 {[%clk 0:04:09.2]} 8. Bxe7
{[%clk 0:04:32.5]} 8... Qxe7 {[%clk 0:04:09.1]} 9. Bc4 {[%clk 0:04:18.9]} 9...
O-O {[%clk 0:03:53.8]} 10. O-O {[%clk 0:04:17.3]} 10... Nc6 {[%clk 0:03:49.5]}
11. Nb3 {[%clk 0:04:13.6]} 11... Nf4 {[%clk 0:03:41.4]} 12. Nbd4 {[%clk
0:04:06]} 12... Nxd4 {[%clk 0:03:36.1]} 13. Qxd4 {[%clk 0:04:03.1]} 13... Ng6
{[%clk 0:03:32.1]} 14. Rfe1 {[%clk 0:03:56.7]} 14... b6 {[%clk 0:03:24.8]} 15.
h4 {[%clk 0:03:31.2]} 15... Bb7 {[%clk 0:03:21.1]} 16. Ng5 {[%clk 0:03:29.7]}
16... Bc8 {[%clk 0:02:45.6]} 17. Rad1 {[%clk 0:03:16.6]} 17... h6 {[%clk
0:02:41.3]} 18. Nf3 {[%clk 0:02:57.9]} 18... Bb7 {[%clk 0:02:39.5]} 19. h5
{[%clk 0:02:50.3]} 19... Bxf3 {[%clk 0:02:32.6]} 20. Rd3 {[%clk 0:02:46.6]}
20... Be4 {[%clk 0:02:11.9]} 21. Rg3 {[%clk 0:02:37.4]} 21... Nf4 {[%clk
0:02:03.6]} 22. f3 {[%clk 0:02:29.2]} 22... Nxh5 {[%clk 0:01:44.9]} 23. Rh3
{[%clk 0:02:15.4]} 23... Nf4 {[%clk 0:01:21.7]} 24. Rg3 {[%clk 0:02:12.9]} 24...
c5 {[%clk 0:00:49]} 25. Qe3 {[%clk 0:02:08.6]} 25... Nd5 {[%clk 0:00:33.3]} 26.
Qxh6 {[%clk 0:02:03.5]} 26... f4 {[%clk 0:00:20.6]} 27. Rg5 {[%clk 0:01:47.9]}
27... Bf5 {[%clk 0:00:19]} 28. g4 {[%clk 0:01:28.3]} 28... fxg3 {[%clk
0:00:17.1]} 29. Rxg3 {[%clk 0:01:26.3]} 29... Bxc2 {[%clk 0:00:16]} 30. Re2
{[%clk 0:01:14.4]} 30... Bf5 {[%clk 0:00:14.1]} 31. Rh2 {[%clk 0:01:11.1]} 31...
g6 {[%clk 0:00:05.1]} 32. Qh8+ {[%clk 0:01:06.9]} 32... Kf7 {[%clk 0:00:04.5]}
33. Rh7+ {[%clk 0:00:53]} 33... Ke8 {[%clk 0:00:03.8]} 34. Rxe7+ {[%clk
0:00:52]} 34... Nxe7 {[%clk 0:00:03.2]} 35. Qg7 {[%clk 0:00:44.7]} 35... Rd8
{[%clk 0:00:01.9]} 36. Bb5+ {[%clk 0:00:36.8]} 1-0

[Event "Live Chess"]
[Site "Chess.com"]
[Date "2023.05.20"]
[Round "-"]
[White "Pablo_dmp"]
[Black "GEMdzq"]
[Result "0-1"]
[WhiteElo "1874"]
[BlackElo "2230"]
[TimeControl "300"]
[EndTime "15:30:00 PDT"]
[Termination "GEMdzq won by resignation"]

1. e4 {[%clk 0:04:58.7]} 1... d6 {[%clk 0:04:58]} 2. Nc3 {[%clk 0:04:57.1]} 2...
Nf6 {[%clk 0:04:57.9]} 3. d4 {[%clk 0:04:56.2]} 3... g6 {[%clk 0:04:56.8]} 4. f4
{[%clk 0:04:50.7]} 4... Bg7 {[%clk 0:04:54.2]} 5. Nf3 {[%clk 0:04:49.8]} 5...
O-O {[%clk 0:04:51.6]} 6. e5 {[%clk 0:04:47.2]} 6... Nfd7 {[%clk 0:04:47.8]} 7.
Bc4 {[%clk 0:04:41.6]} 7... c5 {[%clk 0:04:36]} 8. Be3 {[%clk 0:04:37.2]} 8...
Nb6 {[%clk 0:04:33.3]} 9. Be2 {[%clk 0:04:25.7]} 9... cxd4 {[%clk 0:04:30.7]}
10. Bxd4 {[%clk 0:04:24.2]} 10... Nc6 {[%clk 0:04:29.2]} 11. Bxb6 {[%clk
0:04:16.8]} 11... Qxb6 {[%clk 0:04:24.8]} 12. Nd5 {[%clk 0:04:12.1]} 12... Qa5+
{[%clk 0:04:07.8]} 13. c3 {[%clk 0:04:07.9]} 13... Be6 {[%clk 0:04:06.5]} 14.
Bc4 {[%clk 0:03:56.2]} 14... b5 {[%clk 0:03:59.6]} 15. Bb3 {[%clk 0:03:53.3]}
15... b4 {[%clk 0:03:58.5]} 16. c4 {[%clk 0:03:47.4]} 16... dxe5 {[%clk
0:03:57.7]} 17. fxe5 {[%clk 0:03:42.8]} 17... Qc5 {[%clk 0:03:46.7]} 18. Qe2
{[%clk 0:03:29.8]} 18... a5 {[%clk 0:03:40.9]} 19. Qf2 {[%clk 0:03:26]} 19...
Qxf2+ {[%clk 0:03:35.7]} 20. Kxf2 {[%clk 0:03:25.9]} 20... a4 {[%clk 0:03:34.8]}
21. Bc2 {[%clk 0:03:21.8]} 21... Bxd5 {[%clk 0:03:32.9]} 22. cxd5 {[%clk
0:03:20.4]} 22... Nxe5 {[%clk 0:03:32.4]} 23. Be4 {[%clk 0:03:11]} 23... Rac8
{[%clk 0:03:22.1]} 24. Rab1 {[%clk 0:03:07.4]} 24... f5 {[%clk 0:03:14]} 25.
Nxe5 {[%clk 0:03:05.3]} 25... fxe4+ {[%clk 0:03:12.5]} 0-1

[Event "Live Chess"]
[Site "Chess.com"]
[Date "2023.05.20"]
[Round "-"]
[White "McSlash1"]
[Black "raminguy"]
[Result "0-1"]
[WhiteElo "1998"]
[BlackElo "1958"]
[TimeControl "300"]
[EndTime "15:30:09 PDT"]
[Termination "raminguy won by resignation"]

1. e4 {[%clk 0:04:59.9]} 1... e5 {[%clk 0:04:58]} 2. Nf3 {[%clk 0:04:57.1]} 2...
Nc6 {[%clk 0:04:56.6]} 3. Bb5 {[%clk 0:04:56.4]} 3... Nf6 {[%clk 0:04:54.9]} 4.
O-O {[%clk 0:04:55]} 4... Nxe4 {[%clk 0:04:54.6]} 5. Bxc6 {[%clk 0:04:53.6]}
5... dxc6 {[%clk 0:04:53.3]} 6. Re1 {[%clk 0:04:53.5]} 6... Nd6 {[%clk 0:04:52]}
7. Nxe5 {[%clk 0:04:52.5]} 7... Be7 {[%clk 0:04:51]} 8. d4 {[%clk 0:04:51.4]}
8... O-O {[%clk 0:04:49.9]} 9. c3 {[%clk 0:04:51.3]} 9... Bf6 {[%clk 0:04:48.3]}
10. Nd2 {[%clk 0:04:50.2]} 10... Re8 {[%clk 0:04:46.5]} 11. Ndf3 {[%clk
0:04:49.3]} 11... Nf5 {[%clk 0:04:44]} 12. Bf4 {[%clk 0:04:46.4]} 12... Be6
{[%clk 0:04:42.3]} 13. Ng4 {[%clk 0:04:41]} 13... Be7 {[%clk 0:04:39.4]} 14.
Nge5 {[%clk 0:04:39.7]} 14... c5 {[%clk 0:04:32.8]} 15. Qe2 {[%clk 0:04:35.6]}
15... cxd4 {[%clk 0:04:30.8]} 16. cxd4 {[%clk 0:04:35.4]} 16... Nxd4 {[%clk
0:04:26.5]} 17. Qe4 {[%clk 0:04:34.8]} 17... Nxf3+ {[%clk 0:04:21.5]} 18. Qxf3
{[%clk 0:04:33.8]} 18... c6 {[%clk 0:04:13.6]} 19. Rad1 {[%clk 0:04:24.9]} 19...
Qb6 {[%clk 0:04:08.2]} 20. Be3 {[%clk 0:04:12.3]} 20... Qxb2 {[%clk 0:03:49.8]}
21. Bd4 {[%clk 0:04:11.8]} 21... Qxa2 {[%clk 0:03:46.9]} 22. Qg3 {[%clk
0:04:10.3]} 22... Bf6 {[%clk 0:03:38.2]} 23. Re3 {[%clk 0:04:00.6]} 23... Rad8
{[%clk 0:03:27.8]} 24. Rf3 {[%clk 0:03:54.3]} 24... Rxd4 {[%clk 0:03:22.3]} 25.
Re1 {[%clk 0:03:47.7]} 25... Bxe5 {[%clk 0:03:16.1]} 26. Qxe5 {[%clk 0:03:47.6]}
26... Qd5 {[%clk 0:03:00.8]} 27. Qe3 {[%clk 0:03:42.1]} 27... Rd1 {[%clk
0:02:58.6]} 28. h3 {[%clk 0:03:37.2]} 28... Rxe1+ {[%clk 0:02:56.2]} 29. Qxe1
{[%clk 0:03:37.1]} 29... Rd8 {[%clk 0:02:49.4]} 30. Qc3 {[%clk 0:03:32.5]} 30...
f6 {[%clk 0:02:39.8]} 31. Rg3 {[%clk 0:03:25.6]} 31... Qe5 {[%clk 0:02:26.9]}
32. Qa3 {[%clk 0:03:01]} 32... Bf7 {[%clk 0:01:30.7]} 33. Re3 {[%clk 0:02:53.2]}
33... Rd1+ {[%clk 0:01:25]} 0-1

[Event "Live Chess"]
[Site "Chess.com"]
[Date "2023.05.20"]
[Round "-"]
[White "elvenstar"]
[Black "diana21strabt"]
[Result "0-1"]
[WhiteElo "1567"]
[BlackElo "1698"]
[TimeControl "300"]
[EndTime "15:30:32 PDT"]
[Termination "diana21strabt won by resignation"]

1. e4 {[%clk 0:04:58.3]} 1... d5 {[%clk 0:04:57]} 2. e5 {[%clk 0:04:56.1]} 2...
c5 {[%clk 0:04:55.9]} 3. Nf3 {[%clk 0:04:53.7]} 3... Nc6 {[%clk 0:04:55]} 4. Bb5
{[%clk 0:04:51.8]} 4... Bg4 {[%clk 0:04:53.4]} 5. c3 {[%clk 0:04:48.6]} 5... Qb6
{[%clk 0:04:51.6]} 6. Bxc6+ {[%clk 0:04:47.1]} 6... bxc6 {[%clk 0:04:50.8]} 7.
d3 {[%clk 0:04:42.6]} 7... e6 {[%clk 0:04:48.8]} 8. Nbd2 {[%clk 0:04:41.5]} 8...
Ne7 {[%clk 0:04:45.9]} 9. Qc2 {[%clk 0:04:40.4]} 9... Nf5 {[%clk 0:04:44.6]} 10.
O-O {[%clk 0:04:38.7]} 10... Be7 {[%clk 0:04:43.4]} 11. h3 {[%clk 0:04:37.7]}
11... Bxf3 {[%clk 0:04:41.7]} 12. Nxf3 {[%clk 0:04:36.8]} 12... O-O {[%clk
0:04:41]} 13. Bf4 {[%clk 0:04:26.8]} 13... Rab8 {[%clk 0:04:30.8]} 14. b3 {[%clk
0:04:24.2]} 14... d4 {[%clk 0:04:16]} 15. c4 {[%clk 0:04:21.8]} 15... Qb4 {[%clk
0:04:09.6]} 16. g4 {[%clk 0:04:19.8]} 16... Nh4 {[%clk 0:04:03.8]} 17. Nxh4
{[%clk 0:04:17.1]} 17... Bxh4 {[%clk 0:04:02.4]} 18. Bg3 {[%clk 0:04:11.3]}
18... Bg5 {[%clk 0:03:57.5]} 19. f4 {[%clk 0:04:09.7]} 19... Be7 {[%clk
0:03:56.1]} 20. f5 {[%clk 0:04:07.6]} 20... exf5 {[%clk 0:03:55.1]} 21. gxf5
{[%clk 0:04:06.1]} 21... Bg5 {[%clk 0:03:53.7]} 22. Bf4 {[%clk 0:04:02.3]} 22...
Bxf4 {[%clk 0:03:32.6]} 23. Rxf4 {[%clk 0:04:00.5]} 23... f6 {[%clk 0:03:31.6]}
24. e6 {[%clk 0:03:58.6]} 24... Rfe8 {[%clk 0:03:30]} 25. Qe2 {[%clk 0:03:49.2]}
25... Qc3 {[%clk 0:03:27.1]} 26. Re1 {[%clk 0:03:43.3]} 26... Re7 {[%clk
0:03:22.8]} 27. Kh1 {[%clk 0:03:21.3]} 27... Rbe8 {[%clk 0:03:18.3]} 28. Re4
{[%clk 0:03:18.3]} 28... Qa5 {[%clk 0:03:14.5]} 29. Rg1 {[%clk 0:03:16]} 29...
Qc7 {[%clk 0:03:11.9]} 30. Qg2 {[%clk 0:03:08.8]} 30... Kh8 {[%clk 0:03:06.4]}
31. h4 {[%clk 0:02:56.8]} 31... g6 {[%clk 0:03:04.3]} 32. Rg4 {[%clk 0:02:47.5]}
32... Rg8 {[%clk 0:02:47.3]} 33. fxg6 {[%clk 0:02:33.1]} 33... h5 {[%clk
0:02:36.3]} 34. g7+ {[%clk 0:02:21.6]} 34... Rgxg7 {[%clk 0:02:29.4]} 35. Rxg7
{[%clk 0:02:04]} 35... Rxg7 {[%clk 0:02:27.8]} 36. Qxg7+ {[%clk 0:01:57.4]}
36... Qxg7 {[%clk 0:02:25.2]} 37. Rxg7 {[%clk 0:01:52.1]} 37... Kxg7 {[%clk
0:02:23.1]} 38. Kg2 {[%clk 0:01:50.8]} 38... f5 {[%clk 0:02:20.6]} 39. Kf3
{[%clk 0:01:49.1]} 39... Kf6 {[%clk 0:02:19.9]} 40. Kf4 {[%clk 0:01:44.4]} 40...
Kxe6 {[%clk 0:02:15.4]} 41. a3 {[%clk 0:01:33.2]} 41... a5 {[%clk 0:02:09.6]}
42. a4 {[%clk 0:01:19.9]} 42... Kf6 {[%clk 0:02:02.1]} 43. Kf3 {[%clk
0:01:14.1]} 43... Ke5 {[%clk 0:01:59.6]} 44. Kg3 {[%clk 0:01:10.8]} 44... f4+
{[%clk 0:01:57.8]} 45. Kf3 {[%clk 0:01:08.8]} 45... Kf5 {[%clk 0:01:56.7]} 0-1

[Event "Live Chess"]
[Site "Chess.com"]
[Date "2023.05.20"]
[Round "-"]
[White "nigelst"]
[Black "VicLemon"]
[Result "1-0"]
[WhiteElo "1831"]
[BlackElo "1356"]
[TimeControl "300"]
[EndTime "15:30:50 PDT"]
[Termination "nigelst won by resignation"]

1. e4 {[%clk 0:04:58.7]} 1... c5 {[%clk 0:04:57.1]} 2. Nf3 {[%clk 0:04:57.6]}
2... e6 {[%clk 0:04:56.3]} 3. c3 {[%clk 0:04:54.9]} 3... d5 {[%clk 0:04:53.4]}
4. exd5 {[%clk 0:04:53]} 4... Qxd5 {[%clk 0:04:52.4]} 5. d4 {[%clk 0:04:52]}
5... Nf6 {[%clk 0:04:48.1]} 6. Bd3 {[%clk 0:04:45.4]} 6... Nc6 {[%clk
0:04:41.5]} 7. O-O {[%clk 0:04:41]} 7... Be7 {[%clk 0:04:05.7]} 8. Na3 {[%clk
0:04:31.6]} 8... cxd4 {[%clk 0:04:03.2]} 9. Nb5 {[%clk 0:04:24.9]} 9... Qd8
{[%clk 0:04:00.8]} 10. Nbxd4 {[%clk 0:04:22.3]} 10... Nxd4 {[%clk 0:03:56.5]}
11. cxd4 {[%clk 0:04:21.4]} 11... O-O {[%clk 0:03:55]} 12. Be3 {[%clk
0:04:18.2]} 12... Nd5 {[%clk 0:03:51.8]} 13. Rc1 {[%clk 0:04:16.4]} 13... Bd7
{[%clk 0:03:49.1]} 14. Bb1 {[%clk 0:04:14.9]} 14... Bc6 {[%clk 0:03:43.2]} 15.
Qd3 {[%clk 0:04:13.3]} 15... Nf6 {[%clk 0:03:41.1]} 16. Bg5 {[%clk 0:04:05.1]}
16... g6 {[%clk 0:03:31.8]} 17. Ne5 {[%clk 0:04:00.6]} 17... Be4 {[%clk
0:03:27.1]} 18. Qh3 {[%clk 0:03:45.1]} 18... Bxb1 {[%clk 0:03:08.7]} 19. Rxb1
{[%clk 0:03:42.8]} 19... Qxd4 {[%clk 0:03:02.2]} 20. Nf3 {[%clk 0:03:40.5]}
20... Qg4 {[%clk 0:02:55.8]} 21. Qxg4 {[%clk 0:03:32.8]} 21... Nxg4 {[%clk
0:02:54.4]} 22. Bxe7 {[%clk 0:03:31.6]} 1-0

[Event "Live Chess"]
[Site "Chess.com"]
[Date "2023.05.20"]
[Round "-"]
[White "MrBlond89"]
[Black "Doge_Dandolo"]
[Result "0-1"]
[WhiteElo "1370"]
[BlackElo "2030"]
[TimeControl "300"]
[EndTime "15:30:51 PDT"]
[Termination "Doge_Dandolo won by resignation"]

1. e4 {[%clk 0:04:59.5]} 1... c6 {[%clk 0:04:58.7]} 2. Nf3 {[%clk 0:04:54.7]}
2... d5 {[%clk 0:04:57.9]} 3. exd5 {[%clk 0:04:54]} 3... cxd5 {[%clk 0:04:56.7]}
4. d4 {[%clk 0:04:53.3]} 4... Nc6 {[%clk 0:04:55.3]} 5. Nc3 {[%clk 0:04:52.5]}
5... Bg4 {[%clk 0:04:53.2]} 6. Be3 {[%clk 0:04:51.4]} 6... e6 {[%clk 0:04:52.2]}
7. h3 {[%clk 0:04:49.7]} 7... Bxf3 {[%clk 0:04:50.3]} 8. Qxf3 {[%clk 0:04:48.7]}
8... Nf6 {[%clk 0:04:49.8]} 9. O-O-O {[%clk 0:04:47.3]} 9... Bb4 {[%clk
0:04:46.1]} 10. Bd3 {[%clk 0:04:11.7]} 10... Qa5 {[%clk 0:04:41.4]} 11. Qg3
{[%clk 0:03:43.4]} 11... Bxc3 {[%clk 0:04:32]} 12. Qxg7 {[%clk 0:03:26.9]} 12...
O-O-O {[%clk 0:04:20.6]} 13. Qxf6 {[%clk 0:03:18.2]} 13... Bb4 {[%clk
0:04:10.1]} 14. c3 {[%clk 0:03:02]} 14... Be7 {[%clk 0:04:01.6]} 15. Qxf7 {[%clk
0:02:52.5]} 15... Qxa2 {[%clk 0:03:58.1]} 16. Qxe6+ {[%clk 0:02:47]} 16... Kb8
{[%clk 0:03:56.9]} 17. Bf4+ {[%clk 0:01:50.9]} 17... Ka8 {[%clk 0:03:52.4]} 18.
Kc2 {[%clk 0:01:42.8]} 18... Rhe8 {[%clk 0:03:42.5]} 19. Ra1 {[%clk 0:01:37.9]}
19... Nb4+ {[%clk 0:03:32.2]} 20. cxb4 {[%clk 0:01:28.8]} 20... Rc8+ {[%clk
0:03:30.9]} 21. Kd2 {[%clk 0:01:02.5]} 21... Bxb4+ {[%clk 0:03:22.2]} 0-1